bitfinex/quotes_BTCUSD_20240810
["timestamp","ask_amount","ask_price","bid_price","bid_amount"]
[1723269444949,0.64689546,60498.0,60497.0,0.47607231]
[1723269445399,0.64689546,60498.0,60497.0,0.33882441]
[1723269446109,0.616314,60498.0,60497.0,0.33882441]
[1723269447495,0.64689106,60498.0,60497.0,0.47608247]
[1723269448257,0.616314,60498.0,60497.0,0.33882441]
[1723269448460,0.502714,60498.0,60497.0,0.33882441]
[1723269448720,0.616314,60498.0,60497.0,0.33882441]
[1723269449316,0.64686827,60498.0,60497.0,0.33882441]
[1723269449505,0.64686827,60498.0,60497.0,0.47608172]
[1723269449657,0.66590014,60498.0,60497.0,0.47608172]
[1723269449858,0.69645387,60498.0,60497.0,0.47608028]
[1723269450166,0.69645332,60498.0,60497.0,0.47608028]
[1723269452525,0.64686773,60498.0,60497.0,0.47608028]
[1723269453487,0.64686773,60498.0,60497.0,0.4760761]
[1723269456561,0.97745673,60498.0,60497.0,0.4760761]
[1723269456811,0.64686773,60498.0,60497.0,0.4760761]
[1723269457021,0.64686773,60498.0,60497.0,0.44388071]
[1723269457022,0.72133481,60498.0,60497.0,0.44388071]
[1723269457193,0.72133481,60498.0,60497.0,0.47605738]
[1723269457350,0.69069889,60498.0,60497.0,0.47605738]
[1723269457554,0.72133753,60498.0,60497.0,0.47606411]
[1723269457995,0.64695264,60498.0,60497.0,0.47606411]
[1723269458293,0.74612433,60498.0,60497.0,0.47606411]
[1723269458705,0.74614033,60498.0,60497.0,0.4760663]
[1723269459465,0.74615596,60498.0,60497.0,0.4760663]
[1723269459681,0.64696864,60498.0,60497.0,0.4760663]
[1723269460062,0.74616135,60498.0,60497.0,0.4760663]
[1723269460471,0.72136389,60498.0,60497.0,0.4760663]
[1723269460719,0.72138167,60498.0,60497.0,0.4760663]
[1723269461749,0.64698642,60498.0,60497.0,0.4760663]
[1723269464103,0.64702106,60498.0,60497.0,0.47606244]
[1723269467485,0.53342106,60498.0,60497.0,0.47606244]
[1723269467809,0.64701318,60498.0,60497.0,0.47606241]
[1723269468131,0.616314,60498.0,60497.0,0.47606241]
[1723269468353,0.64698706,60498.0,60497.0,0.47606241]
[1723269471314,0.64700941,60498.0,60497.0,0.47606241]
[1723269474703,0.64698872,60498.0,60497.0,0.47605906]
[1723269475699,0.64699244,60498.0,60497.0,0.33880569]
[1723269475946,0.64699244,60498.0,60497.0,0.47605729]
[1723269477700,0.69658463,60498.0,60497.0,0.47605729]
[1723269478812,0.69660653,60498.0,60497.0,0.33880569]
[1723269479010,0.69660653,60498.0,60497.0,0.47605729]
[1723269479915,0.69665222,60498.0,60497.0,0.47605729]
[1723269482888,0.69665222,60498.0,60497.0,0.33880569]
[1723269483089,0.69665222,60498.0,60497.0,0.47605729]
[1723269484439,0.69670668,60498.0,60497.0,0.47605721]
[1723269487949,0.69670668,60498.0,60497.0,0.33880569]
[1723269488173,0.69670668,60498.0,60497.0,0.47605718]
[1723269488588,0.69673672,60498.0,60497.0,0.47605721]
[1723269489837,0.69672321,60498.0,60497.0,0.47605717]
[1723269490348,1.02731221,60498.0,60497.0,0.47605717]
[1723269490949,1.05210739,60498.0,60497.0,0.47605717]
[1723269491650,1.02128853,60498.0,60497.0,0.47605717]
[1723269491804,1.0521887,60498.0,60497.0,0.47605717]
[1723269492635,1.3827777,60498.0,60497.0,0.17034225]
[1723269492840,1.3827777,60498.0,60497.0,0.03309077]
[1723269492841,1.53834187,60498.0,60497.0,0.03309077]
[1723269493011,1.53834187,60498.0,60497.0,0.0009141]
[1723269493012,1.85383371,60498.0,60497.0,0.0009141]
[1723269494030,1.84783371,60498.0,60497.0,0.0009141]
[1723269494357,1.84783371,60498.0,60497.0,0.0029141]
[1723269494358,2.00727726,60498.0,60497.0,0.0029141]
[1723269494720,1.99627726,60498.0,60497.0,0.0009141]
[1723269495119,1.85683371,60498.0,60497.0,0.0019141]
[1723269495669,1.84783371,60498.0,60497.0,0.0009141]
[1723269495873,1.84783371,60498.0,60497.0,0.0019141]
[1723269496072,1.85683371,60498.0,60497.0,0.0019141]
[1723269496641,2.01721858,60498.0,60497.0,0.0029141]
[1723269497038,2.00518257,60498.0,60497.0,0.0019141]
[1723269497287,1.222994,60491.0,60490.0,0.0009141]
[1723269497444,1.84714077,60491.0,60490.0,0.0009141]
[1723269498556,1.85718492,60491.0,60490.0,0.0019141]
[1723269498938,1.777221,60491.0,60490.0,0.0019141]
[1723269499143,1.85718492,60491.0,60490.0,0.0019141]
[1723269499600,1.86418492,60491.0,60490.0,0.0029141]
[1723269501170,1.93859293,60491.0,60490.0,0.0029141]
[1723269501513,1.81515592,60491.0,60490.0,0.0029141]
[1723269502073,1.784221,60491.0,60490.0,0.0029141]
[1723269502278,1.93881236,60491.0,60490.0,0.0029141]
[1723269502838,1.94885949,60491.0,60490.0,0.0029141]
[1723269504312,1.82526732,60491.0,60490.0,0.0029141]
[1723269504867,1.94885949,60491.0,60490.0,0.0029141]
[1723269505325,1.92411952,60491.0,60490.0,0.0029141]
[1723269505754,1.82526732,60491.0,60490.0,0.0029141]
[1723269506169,1.94410824,60491.0,60490.0,0.0029141]
[1723269508092,1.84526732,60491.0,60490.0,0.0029141]
[1723269508253,1.94405825,60491.0,60490.0,0.0029141]
[1723269508659,2.48195005,60491.0,60490.0,0.0029141]
[1723269508974,2.38885859,60491.0,60490.0,0.0029141]
[1723269509588,2.38889186,60491.0,60490.0,0.0029141]
[1723269509971,2.30871005,60491.0,60490.0,0.0029141]
[1723269511170,2.29871005,60491.0,60490.0,0.0019141]
[1723269511521,2.38189157,60491.0,60490.0,0.0019141]
[1723269512139,2.38190565,60491.0,60490.0,0.0019141]
[1723269512739,2.39590565,60491.0,60490.0,0.0029141]
[1723269513241,2.39591192,60491.0,60490.0,0.0029141]
[1723269515768,2.51930127,60491.0,60490.0,0.0029141]
[1723269516742,2.68345097,60491.0,60490.0,0.0029141]
[1723269516942,2.51928944,60491.0,60490.0,0.0029141]
[1723269518358,2.06531922,60491.0,60490.0,0.0029141]
[1723269519628,2.06536244,60491.0,60490.0,0.0029141]
[1723269519904,2.06536127,60491.0,60490.0,0.0029141]
[1723269520399,2.10995326,60491.0,60490.0,0.0029141]
[1723269522989,2.44058026,60491.0,60490.0,0.0029141]
[1723269523196,0.195335,60483.0,60482.0,0.0009141]
[1723269523392,1.40632558,60483.0,60482.0,0.0009141]
[1723269523593,0.836787,60475.0,60474.0,0.0646]
[1723269523801,1.16752,60474.0,60473.0,0.0797]
[1723269523997,1.67841712,60474.0,60473.0,0.0797]
[1723269524197,1.67842559,60474.0,60473.0,0.0797]
[1723269525419,1.67840583,60474.0,60473.0,0.0797]
[1723269525616,1.68740583,60474.0,60473.0,0.0807]
[1723269525823,1.68740583,60474.0,60473.0,0.001]
[1723269526234,1.78928675,60474.0,60473.0,0.001]
[1723269526460,1.7447179,60474.0,60473.0,0.001]
[1723269526806,1.69540583,60474.0,60473.0,0.0807]
[1723269527521,1.62497934,60474.0,60473.0,0.0807]
[1723269527721,1.70518285,60474.0,60473.0,0.0807]
[1723269529510,1.70518285,60474.0,60473.0,0.1453]
[1723269530823,1.70518285,60474.0,60473.0,0.1462141]
[1723269531430,1.70518008,60474.0,60473.0,0.1462141]
[1723269533126,1.75447985,60474.0,60473.0,0.1462141]
[1723269533971,1.75447985,60474.0,60473.0,0.0816141]
[1723269534193,1.70518008,60474.0,60473.0,0.0816141]
[1723269534825,1.62497934,60474.0,60473.0,0.0816141]
[1723269535031,1.70534674,60474.0,60473.0,0.0816141]
[1723269535251,1.7792964,60474.0,60473.0,0.0816141]
[1723269535461,1.70534674,60474.0,60473.0,0.0816141]
[1723269535667,1.77934214,60474.0,60473.0,0.0816141]
[1723269537160,1.91760728,60474.0,60473.0,0.0816141]
[1723269538337,1.91760728,60474.0,60473.0,0.1462141]
[1723269538544,1.91746163,60474.0,60473.0,0.1462141]
[1723269539935,1.81880109,60474.0,60473.0,0.1462141]
[1723269540272,1.81880109,60474.0,60473.0,0.0019141]
[1723269540552,1.187558,60472.0,60471.0,0.0009141]
[1723269540714,0.526105,60471.0,60470.0,0.0009141]
[1723269540916,1.43792459,60471.0,60470.0,0.0009141]
[1723269541117,1.31447867,60471.0,60470.0,0.0009141]
[1723269541323,1.97576255,60471.0,60470.0,0.0009141]
[1723269541724,2.09921416,60471.0,60470.0,0.0009141]
[1723269541942,1.97576255,60471.0,60470.0,0.0009141]
[1723269542149,2.09921416,60471.0,60470.0,0.0009141]
[1723269542755,1.97576255,60471.0,60470.0,0.0009141]
[1723269543064,1.98676255,60471.0,60470.0,0.0009141]
[1723269543264,2.11021416,60471.0,60470.0,0.0009141]
[1723269543562,2.12121416,60471.0,60470.0,0.0009141]
[1723269543764,2.12119474,60471.0,60470.0,0.0009141]
[1723269544345,2.12119474,60471.0,60470.0,0.0788141]
[1723269544555,2.12119474,60471.0,60470.0,0.1450141]
[1723269544755,2.1212162,60471.0,60470.0,0.1450141]
[1723269544960,1.99774313,60471.0,60470.0,0.1450141]
[1723269545124,1.99775436,60471.0,60470.0,0.1450141]
[1723269545323,2.09653586,60471.0,60470.0,0.1450141]
[1723269546196,1.99775436,60471.0,60470.0,0.1450141]
[1723269546485,1.9977457,60471.0,60470.0,0.1450141]
[1723269546925,1.8641457,60471.0,60470.0,0.1450141]
[1723269547278,1.90271893,60471.0,60470.0,0.1450141]
[1723269547476,1.91271893,60471.0,60470.0,0.1450141]
[1723269548087,1.91273423,60471.0,60470.0,0.1450141]
[1723269549135,1.81393078,60471.0,60470.0,0.1450141]
[1723269549332,1.733916,60471.0,60470.0,0.1450141]
[1723269549530,1.81373301,60471.0,60470.0,0.1450141]
[1723269551493,1.83964653,60471.0,60470.0,0.1450141]
[1723269552175,1.96315085,60471.0,60470.0,0.1450141]
[1723269552594,2.0068783,60471.0,60470.0,0.1450141]
[1723269552762,1.8832783,60471.0,60470.0,0.1450141]
[1723269552961,2.0068783,60471.0,60470.0,0.1450141]
[1723269553644,2.00688049,60471.0,60470.0,0.1450141]
[1723269553769,1.99688049,60471.0,60470.0,0.1450141]
[1723269553970,2.00688049,60471.0,60470.0,0.1450141]
[1723269554451,1.99688049,60471.0,60470.0,0.1450141]
[1723269554734,1.88337617,60471.0,60470.0,0.1450141]
[1723269555308,1.88341286,60471.0,60470.0,0.1450141]
[1723269556302,1.83966744,60471.0,60470.0,0.1450141]
[1723269556501,1.80358631,60471.0,60470.0,0.1450141]
[1723269556707,1.88341268,60471.0,60470.0,0.1450141]
[1723269557175,1.88346865,60471.0,60470.0,0.1450141]
[1723269558334,1.88343091,60471.0,60470.0,0.1450141]
[1723269560615,1.80360611,60471.0,60470.0,0.1450141]
[1723269560852,1.88344154,60471.0,60470.0,0.1450141]
[1723269564157,1.88337158,60471.0,60470.0,0.1450141]
[1723269564581,1.88337196,60471.0,60470.0,0.1450141]
[1723269564753,2.03157714,60471.0,60470.0,0.0009141]
[1723269564976,2.38231414,60471.0,60470.0,0.0009141]
[1723269565175,2.23410896,60471.0,60470.0,0.0009141]
[1723269566463,0.01,60461.0,60458.0,0.1463]
[1723269566639,0.84278646,60461.0,60458.0,0.0811]
[1723269566861,0.84278646,60461.0,60456.0,0.1463]
[1723269566862,0.506219,60457.0,60456.0,0.1463]
[1723269567063,1.45602444,60457.0,60456.0,0.1463]
[1723269567274,1.7920695,60457.0,60456.0,0.1463]
[1723269568057,1.498708,60455.0,60454.0,0.0652]
[1723269568287,1.498708,60455.0,60446.0,0.0009141]
[1723269568288,0.496302,60447.0,60446.0,0.0009141]
[1723269568489,0.97165476,60447.0,60446.0,0.0009141]
[1723269568692,1.30252276,60447.0,60446.0,0.0009141]
[1723269568848,1.37652918,60447.0,60446.0,0.0009141]
[1723269569049,1.30232282,60447.0,60446.0,0.0009141]
[1723269569249,1.31232282,60447.0,60446.0,0.0009141]
[1723269569498,1.31632282,60447.0,60446.0,0.0009141]
[1723269569855,1.31232282,60447.0,60446.0,0.0009141]
[1723269570053,1.30232282,60447.0,60446.0,0.0009141]
[1723269570303,0.86785482,60447.0,60446.0,0.0009141]
[1723269570516,0.65058682,60447.0,60446.0,0.0009141]
[1723269570666,0.98145482,60447.0,60446.0,0.0009141]
[1723269571072,0.98145482,60447.0,60446.0,0.1472141]
[1723269571517,0.97648956,60447.0,60446.0,0.1472141]
[1723269571723,1.00718972,60447.0,60446.0,0.1472141]
[1723269572107,0.89358972,60447.0,60446.0,0.1472141]
[1723269572303,1.00718972,60447.0,60446.0,0.1472141]
[1723269572757,1.00718626,60447.0,60446.0,0.1472141]
[1723269572897,1.00718649,60447.0,60446.0,0.1472141]
[1723269573098,1.00714964,60447.0,60446.0,0.1472141]
[1723269574566,1.00714964,60447.0,60446.0,0.31102902]
[1723269574934,1.00714964,60447.0,60446.0,0.33916793]
[1723269575934,0.97648956,60447.0,60446.0,0.33916793]
[1723269576141,1.00719612,60447.0,60446.0,0.33916793]
[1723269579029,0.98127753,60447.0,60446.0,0.33916793]
[1723269579427,0.97648977,60447.0,60446.0,0.33916793]
[1723269579610,0.95057097,60447.0,60446.0,0.33916793]
[1723269581115,0.95140297,60447.0,60446.0,0.33916793]
[1723269581697,0.83780297,60447.0,60446.0,0.33916793]
[1723269581904,0.50693497,60447.0,60446.0,0.33916793]
[1723269582077,0.95140297,60447.0,60446.0,0.33916793]
[1723269584266,0.98201181,60447.0,60446.0,0.33916793]
[1723269584682,0.95140297,60447.0,60446.0,0.33916793]
[1723269584894,0.98201184,60447.0,60446.0,0.33916793]
[1723269586695,0.98215084,60447.0,60446.0,0.33916793]
[1723269586898,0.95140297,60447.0,60446.0,0.33916793]
[1723269588162,0.98211041,60447.0,60446.0,0.33916793]
[1723269592443,0.98201724,60447.0,60446.0,0.33916793]
[1723269596305,0.95140297,60447.0,60446.0,0.33916793]
[1723269596488,0.98197753,60447.0,60446.0,0.47654597]
[1723269597631,0.98199064,60447.0,60446.0,0.47654597]
[1723269598705,0.95140297,60447.0,60446.0,0.33916793]
[1723269598856,0.98198044,60447.0,60446.0,0.47654597]
[1723269600107,0.98188108,60447.0,60446.0,0.33916793]
[1723269600361,0.98188108,60447.0,60446.0,0.47654597]
[1723269600362,0.04131011,60447.0,60446.0,0.47654597]
[1723269600552,0.04131165,60447.0,60446.0,0.64198197]
[1723269600732,0.04131165,60447.0,60446.0,0.47654597]
[1723269600733,0.010832,60447.0,60446.0,0.47654597]
[1723269601077,0.010832,60447.0,60446.0,0.64198197]
[1723269601296,0.005832,60447.0,60446.0,0.97285497]
[1723269601503,0.008832,60447.0,60446.0,0.97285497]
[1723269602235,0.003832,60447.0,60446.0,0.97285497]
[1723269602638,0.006832,60447.0,60446.0,0.97285497]
[1723269603241,0.006832,60447.0,60446.0,0.97283813]
[1723269604392,0.006832,60447.0,60446.0,0.64196513]
[1723269604602,0.003832,60447.0,60446.0,0.97283813]
[1723269605446,0.000832,60447.0,60446.0,0.97283813]
[1723269605647,0.000832,60447.0,60446.0,0.97383813]
[1723269606457,0.000832,60447.0,60446.0,0.64296513]
[1723269606818,0.115432,60447.0,60446.0,0.64296513]
[1723269607021,0.14587293,60447.0,60446.0,0.47752913]
[1723269607419,0.03227293,60447.0,60446.0,0.64296513]
[1723269607621,0.001832,60447.0,60446.0,0.64296958]
[1723269608513,0.001832,60447.0,60446.0,0.47753358]
[1723269608935,0.001832,60447.0,60446.0,0.47753043]
[1723269609366,0.001832,60447.0,60446.0,0.64296643]
[1723269610669,0.001832,60447.0,60446.0,0.47753043]
[1723269610870,0.001832,60447.0,60446.0,0.64296643]
[1723269611968,0.001832,60447.0,60446.0,0.64196643]
[1723269611969,0.000832,60447.0,60446.0,0.64196643]
[1723269612328,0.000832,60447.0,60446.0,0.64296643]
[1723269612514,0.000832,60447.0,60446.0,0.64196643]
[1723269612919,0.000832,60447.0,60446.0,0.64296643]
[1723269613771,0.000832,60447.0,60446.0,0.97383943]
[1723269614139,0.001832,60447.0,60446.0,1.30471243]
[1723269614339,0.001832,60447.0,60446.0,1.65858543]
[1723269614743,0.000832,60447.0,60446.0,1.91087501]
[1723269615167,0.000832,60447.0,60446.0,1.90985434]
[1723269615593,0.000832,60447.0,60446.0,1.91085434]
[1723269615768,0.000832,60447.0,60446.0,1.90985434]
[1723269615971,0.000832,60447.0,60446.0,1.91085434]
[1723269617300,0.001832,60447.0,60446.0,1.91085434]
[1723269617701,0.001832,60447.0,60446.0,1.88271543]
[1723269617926,0.001832,60447.0,60446.0,1.91130607]
[1723269618853,0.001832,60447.0,60446.0,1.85334841]
[1723269619262,0.001832,60447.0,60446.0,2.31982141]
[1723269619455,0.59005951,60470.0,60469.0,0.247373]
[1723269619456,0.49107874,60470.0,60469.0,0.247373]
[1723269619662,0.49107874,60470.0,60469.0,0.94086552]
[1723269619847,0.000831,60471.0,60470.0,0.578113]
[1723269620031,0.000831,60471.0,60470.0,0.87925852]
[1723269620240,0.000831,60471.0,60470.0,0.90768377]
[1723269620756,0.000831,60471.0,60470.0,1.30302577]
[1723269621726,0.005831,60471.0,60470.0,1.30302577]
[1723269622287,0.008831,60471.0,60470.0,1.63376777]
[1723269622500,0.008831,60471.0,60470.0,1.49643717]
[1723269622700,0.008831,60471.0,60470.0,1.63373445]
[1723269622931,0.008831,60471.0,60470.0,1.30299245]
[1723269623790,0.003831,60471.0,60470.0,1.30299245]
[1723269624031,0.003831,60471.0,60470.0,1.63373445]
[1723269624257,0.005831,60471.0,60470.0,1.63373445]
[1723269626478,0.005831,60471.0,60470.0,1.63373442]
[1723269627460,0.005831,60471.0,60470.0,1.65673442]
[1723269634055,0.005831,60471.0,60470.0,1.51943717]
[1723269637036,0.005831,60471.0,60470.0,1.65672406]
[1723269637723,0.005831,60471.0,60470.0,1.98746606]
[1723269638666,0.005831,60471.0,60470.0,1.85017917]
[1723269639502,0.005831,60471.0,60470.0,1.86017917]
[1723269639837,0.0814,60494.0,60471.0,0.0788]
[1723269640054,0.000831,60497.0,60496.0,0.1653]
[1723269640260,0.000831,60497.0,60491.0,0.1426]
[1723269640420,0.000831,60497.0,60496.0,0.02805766]
[1723269640579,0.000831,60497.0,60495.0,0.165302]
[1723269640785,0.000831,60497.0,60496.0,0.19334106]
[1723269641027,0.000831,60497.0,60496.0,0.52394106]
[1723269641246,0.004831,60497.0,60496.0,0.52394106]
[1723269642408,0.004831,60497.0,60496.0,0.19334106]
[1723269642809,0.009831,60497.0,60496.0,0.52394106]
[1723269644469,0.009831,60497.0,60496.0,0.19334106]
[1723269646096,0.009831,60497.0,60496.0,0.52394106]
[1723269648094,0.009831,60497.0,60496.0,0.68775598]
[1723269649310,0.009831,60497.0,60496.0,0.82500294]
[1723269650028,0.009831,60497.0,60496.0,1.29540294]
[1723269650239,0.009831,60497.0,60496.0,0.90450294]
[1723269650387,0.150831,60497.0,60496.0,0.19185598]
[1723269650589,0.760322,60497.0,60496.0,0.02804106]
[1723269650791,0.760322,60497.0,60479.0,0.05791429]
[1723269650792,0.01,60494.0,60471.0,0.05791429]
[1723269651037,0.1136,60475.0,60474.0,0.16536]
[1723269651238,0.1136,60478.0,60474.0,0.30109523]
[1723269651465,0.165352,60477.0,60475.0,0.16381492]
[1723269651648,0.1136,60478.0,60475.0,0.16381492]
[1723269652086,0.2546,60481.0,60476.0,0.330709]
[1723269652340,0.0785,60481.0,60480.0,0.165343]
[1723269652536,0.0625,60484.0,60482.0,0.165336]
[1723269652779,0.0625,60484.0,60483.0,0.16381492]
[1723269653276,0.1761,60484.0,60483.0,0.16381492]
[1723269654037,0.1811,60484.0,60483.0,0.16381492]
[1723269654238,0.1861,60484.0,60483.0,0.16381492]
[1723269654441,0.1811,60484.0,60483.0,0.16381492]
[1723269655467,0.1186,60484.0,60483.0,0.32914992]
[1723269655713,0.1186,60484.0,60483.0,0.16381492]
[1723269655876,0.1236,60484.0,60483.0,0.16381492]
[1723269657081,0.1236,60484.0,60483.0,0.32914992]
[1723269657286,0.1236,60484.0,60483.0,0.65982092]
[1723269657488,0.01,60484.0,60483.0,0.65982092]
[1723269657937,0.01,60484.0,60483.0,0.7970972]
[1723269658601,0.01,60484.0,60483.0,1.1277682]
[1723269658801,0.01,60484.0,60483.0,0.79709706]
[1723269659425,0.01,60484.0,60483.0,1.20726806]
[1723269660395,0.01,60484.0,60483.0,1.53793906]
[1723269660616,0.01,60484.0,60483.0,1.06999192]
[1723269660809,0.01,60484.0,60483.0,1.20726665]
[1723269661440,0.01,60484.0,60483.0,1.53793765]
[1723269665698,0.01,60484.0,60483.0,1.5659513]
[1723269666273,0.01,60484.0,60483.0,1.6321513]
[1723269666474,0.01,60484.0,60483.0,1.6551513]
[1723269666753,0.010832,60484.0,60483.0,1.9858223]
[1723269667173,0.010832,60484.0,60483.0,2.18239581]
[1723269667383,0.005832,60484.0,60483.0,2.19239581]
[1723269667716,0.005832,60484.0,60483.0,2.25646618]
[1723269667945,0.005832,60484.0,60483.0,2.43001709]
[1723269668200,0.005832,60484.0,60483.0,1.92916793]
[1723269668379,0.005832,60484.0,60483.0,2.43001628]
[1723269668881,0.000832,60484.0,60483.0,2.43001628]
[1723269669083,0.000832,60484.0,60483.0,2.43201628]
[1723269669280,0.000832,60484.0,60483.0,2.43001628]
[1723269669511,0.000832,60484.0,60483.0,2.36139439]
[1723269669719,0.002832,60484.0,60483.0,2.43401424]
[1723269669903,0.002832,60484.0,60483.0,2.45401424]
[1723269670239,0.002832,60484.0,60483.0,2.43201424]
[1723269671087,0.002832,60484.0,60483.0,2.45201424]
[1723269671713,0.002832,60484.0,60483.0,2.38352468]
[1723269671956,0.002832,60484.0,60483.0,2.45214444]
[1723269673006,0.002832,60484.0,60483.0,2.45414444]
[1723269673205,0.002832,60484.0,60483.0,2.55414444]
[1723269673408,0.002832,60484.0,60483.0,3.20414444]
[1723269673637,0.002832,60484.0,60483.0,3.53481544]
[1723269674742,0.000831,60497.0,60496.0,1.7449]
[1723269674945,0.000831,60497.0,60496.0,2.06895444]
[1723269675178,0.000831,60497.0,60496.0,2.09677892]
[1723269675530,0.000831,60497.0,60496.0,2.09677883]
[1723269676056,0.001831,60497.0,60496.0,2.09677883]
[1723269676272,0.002831,60497.0,60496.0,2.09677883]
[1723269676604,0.002831,60497.0,60496.0,1.98317883]
[1723269677025,0.001831,60497.0,60496.0,1.98317883]
[1723269677439,0.002831,60497.0,60496.0,1.98317883]
[1723269677869,0.001831,60497.0,60496.0,1.98317883]
[1723269678287,0.002831,60497.0,60496.0,1.98317883]
[1723269678755,0.000831,60497.0,60496.0,1.98317883]
[1723269678917,0.000831,60497.0,60496.0,1.99287019]
[1723269679111,0.000831,60497.0,60496.0,1.99487019]
[1723269679334,0.000831,60497.0,60496.0,1.99287019]
[1723269679765,0.000831,60497.0,60496.0,1.99587019]
[1723269682374,0.000831,60497.0,60496.0,1.99587024]
[1723269685902,0.000831,60497.0,60496.0,1.85864307]
[1723269686102,0.000831,60497.0,60496.0,1.99587023]
[1723269688139,0.000831,60497.0,60496.0,2.10947023]
[1723269689950,0.000831,60497.0,60496.0,2.10946567]
[1723269691238,0.000831,60497.0,60496.0,2.10946582]
[1723269691711,0.000831,60497.0,60496.0,2.30200115]
[1723269692907,0.000831,60497.0,60496.0,1.97224307]
[1723269693220,0.000831,60497.0,60496.0,2.30199543]
[1723269695017,0.000831,60497.0,60496.0,2.88199543]
[1723269695256,0.000831,60497.0,60496.0,3.47273498]
[1723269695458,0.000831,60497.0,60496.0,3.58272343]
[1723269695675,0.000831,60497.0,60496.0,3.58472343]
[1723269695902,0.000831,60497.0,60496.0,3.77732134]
[1723269696322,0.000831,60497.0,60496.0,3.78424587]
[1723269696524,0.000831,60497.0,60496.0,3.77414662]
[1723269696762,0.001831,60497.0,60496.0,3.77914662]
[1723269697342,0.002831,60497.0,60496.0,3.78907093]
[1723269697979,0.000831,60497.0,60496.0,3.78407093]
[1723269698174,0.001831,60497.0,60496.0,3.78407093]
[1723269698377,0.002831,60497.0,60496.0,3.69298028]
[1723269698731,0.002831,60497.0,60496.0,3.69098028]
[1723269699669,0.002831,60497.0,60496.0,3.69298028]
[1723269700483,0.002831,60497.0,60496.0,3.19183182]
[1723269700703,0.002831,60497.0,60496.0,3.69275695]
[1723269702993,0.002831,60497.0,60496.0,3.69075695]
[1723269703405,0.002831,60497.0,60496.0,3.69275695]
[1723269703611,0.002831,60497.0,60496.0,3.69279418]
[1723269706893,0.002831,60497.0,60496.0,3.67079418]
[1723269707127,0.002831,60497.0,60496.0,3.10122862]
[1723269707324,0.002831,60497.0,60496.0,3.67053255]
[1723269708218,0.002831,60497.0,60496.0,3.67049731]
[1723269708526,0.002831,60497.0,60496.0,3.69249761]
[1723269709629,0.002831,60497.0,60496.0,3.69049761]
[1723269710109,0.002831,60497.0,60496.0,3.69249761]
[1723269710551,0.002831,60497.0,60496.0,3.76655399]
[1723269710762,0.002831,60497.0,60496.0,3.52644701]
[1723269711017,0.002831,60497.0,60496.0,3.76673679]
[1723269711219,0.002831,60497.0,60496.0,3.26588699]
[1723269711388,0.002831,60497.0,60496.0,3.79142462]
[1723269712444,0.002831,60497.0,60496.0,3.69268277]
[1723269714226,0.002831,60497.0,60496.0,3.79168829]
[1723269716563,0.002831,60497.0,60496.0,3.4623411]
[1723269716700,0.002831,60497.0,60496.0,3.70250356]
[1723269717060,0.002831,60497.0,60496.0,3.79158641]
[1723269717807,0.002831,60497.0,60496.0,3.62011445]
[1723269718013,0.002831,60497.0,60496.0,3.70255047]
[1723269718273,0.002831,60497.0,60496.0,3.79160928]
[1723269719416,0.002831,60497.0,60496.0,3.79159989]
[1723269720171,0.002831,60497.0,60496.0,3.77771114]
[1723269720379,0.002831,60497.0,60496.0,3.76779195]
[1723269720942,0.002831,60497.0,60496.0,3.10933987]
[1723269721457,0.002831,60497.0,60496.0,3.49352089]
[1723269721657,0.002831,60497.0,60496.0,4.04228789]
[1723269721877,0.002831,60497.0,60496.0,4.13133758]
[1723269722857,0.002831,60497.0,60496.0,4.38857981]
[1723269723441,0.002831,60497.0,60496.0,4.14125725]
[1723269723557,0.002831,60497.0,60496.0,4.04228789]
[1723269723757,0.002831,60497.0,60496.0,4.16596567]
[1723269724188,0.002831,60497.0,60496.0,3.6652009]
[1723269724388,0.002831,60497.0,60496.0,4.16587373]
[1723269725213,0.002831,60497.0,60496.0,4.26480641]
[1723269725614,0.002831,60497.0,60496.0,4.52206529]
[1723269725815,0.002831,60497.0,60496.0,4.38846784]
[1723269726024,0.002831,60497.0,60496.0,4.13120896]
[1723269726434,0.002831,60497.0,60496.0,3.76762363]
[1723269728484,0.002831,60497.0,60496.0,3.76756651]
[1723269730739,0.002831,60497.0,60496.0,3.28083542]
[1723269730981,0.002831,60497.0,60496.0,3.67847639]
[1723269731170,0.002831,60497.0,60496.0,3.76744422]
[1723269731380,0.002831,60497.0,60496.0,3.1983077]
[1723269731551,0.000831,60501.0,60500.0,0.012]
[1723269731898,0.000831,60501.0,60500.0,1.94109401]
[1723269732111,0.000831,60501.0,60500.0,2.02716421]
[1723269732323,0.000831,60501.0,60500.0,3.36340591]
[1723269732555,0.000831,60501.0,60500.0,3.23978651]
[1723269732786,0.001831,60501.0,60500.0,3.23978651]
[1723269733858,0.001831,60501.0,60500.0,3.24778651]
[1723269734086,0.002831,60501.0,60500.0,3.24778651]
[1723269734504,0.002831,60501.0,60500.0,3.72537596]
[1723269734687,0.002831,60501.0,60500.0,3.81434383]
[1723269734907,0.002831,60501.0,60500.0,3.15622546]
[1723269735135,0.002831,60501.0,60500.0,3.71622242]
[1723269735276,0.00063208,60507.0,60506.0,1.636552]
[1723269735481,0.00063208,60507.0,60506.0,3.30311149]
[1723269735677,0.00063208,60507.0,60506.0,2.7176033]
[1723269735955,0.00063208,60507.0,60506.0,3.2541654]
[1723269736337,0.00063208,60507.0,60506.0,2.6741654]
[1723269736553,0.00163208,60507.0,60506.0,2.6741654]
[1723269736930,0.00263208,60507.0,60506.0,2.6831654]
[1723269737142,0.00263208,60507.0,60506.0,2.68317365]
[1723269738802,0.00263208,60507.0,60506.0,2.69322384]
[1723269739417,0.00263208,60507.0,60506.0,2.59428992]
[1723269739840,0.14763208,60507.0,60506.0,1.69659992]
[1723269740071,0.14763208,60507.0,60506.0,1.02258796]
[1723269740290,0.14763208,60507.0,60506.0,1.68367796]
[1723269740976,0.14763208,60507.0,60506.0,1.35313296]
[1723269741664,0.14763208,60507.0,60506.0,1.35235178]
[1723269742359,0.14763208,60507.0,60506.0,1.34230159]
[1723269742818,0.14763208,60507.0,60506.0,1.40015554]
[1723269743024,0.42650208,60507.0,60506.0,0.16013347]
[1723269743233,0.2913051,60507.0,60506.0,0.16013347]
[1723269743659,0.1777051,60507.0,60506.0,0.32540547]
[1723269743835,0.1777051,60507.0,60506.0,0.16013347]
[1723269744308,0.1767051,60507.0,60506.0,0.15113347]
[1723269744510,0.14663208,60507.0,60506.0,0.15113347]
[1723269744712,0.15063208,60507.0,60506.0,0.15113347]
[1723269745261,0.14963208,60507.0,60506.0,0.31642625]
[1723269745377,0.14963208,60507.0,60506.0,0.81078617]
[1723269745731,0.15363208,60507.0,60506.0,0.48024117]
[1723269745935,0.14963208,60507.0,60506.0,0.48024117]
[1723269746166,0.14563208,60507.0,60506.0,0.48024117]